[Event "Titled Tuesday Blitz November 15 Late 2022"]
[White "Szyszylo, Rafal"]
[Black "Curtis, John"]
[WhiteFideId "1109626"]
[BlackFideId "3200256"]
[WhiteElo "1981"]
[BlackElo "2203"]
[Result "1-0"]
[Round "10"]
[TimeControl "180+1"]
[Date "2022.11.16"]
[WhiteClock "0:00:47"]
[BlackClock "0:00:06"]

1. e4 {[%clk 0:03:00]}  c5 {[%clk 0:02:57]} 2. Nf3 {[%clk 0:02:55]}  d6 {[%clk 0:02:57]} 3. d4 {[%clk 0:02:55]}  cxd4 {[%clk 0:02:57]} 4. Nxd4 {[%clk 0:02:56]}  Nf6 {[%clk 0:02:56]} 5. Nc3 {[%clk 0:02:56]}  a6 {[%clk 0:02:56]} 6. Bc4 {[%clk 0:02:55]}  e6 {[%clk 0:02:53]} 7. O-O {[%clk 0:02:53]}  Qc7 {[%clk 0:02:48]} 8. Bb3 {[%clk 0:02:50]}  Nbd7 {[%clk 0:02:47]} 9. Bxe6 {[%clk 0:02:50]}  fxe6 {[%clk 0:02:46]} 10. Nxe6 {[%clk 0:02:51]}  Qc4 {[%clk 0:02:46]} 11. Nd5 {[%clk 0:02:48]}  Nxd5 {[%clk 0:02:28]} 12. exd5 {[%clk 0:02:38]}  Rb8 {[%clk 0:02:07]} 13. b3 {[%clk 0:02:21]}  Qc3 {[%clk 0:01:27]} 14. Rb1 {[%clk 0:02:07]}  Nf6 {[%clk 0:01:17]} 15. Bb2 {[%clk 0:02:07]}  Qa5 {[%clk 0:01:14]} 16. Bxf6 {[%clk 0:01:53]}  Bxe6 {[%clk 0:01:11]} 17. dxe6 {[%clk 0:01:53]}  gxf6 {[%clk 0:01:07]} 18. e7 {[%clk 0:01:28]}  Bxe7 {[%clk 0:00:56]} 19. Re1 {[%clk 0:01:29]}  Rd8 {[%clk 0:00:44]} 20. Qg4 {[%clk 0:01:20]}  Qg5 {[%clk 0:00:33]} 21. Qe4 {[%clk 0:01:19]}  Rd7 {[%clk 0:00:32]} 22. Rbd1 {[%clk 0:01:17]}  d5 {[%clk 0:00:27]} 23. Qe6 {[%clk 0:01:02]}  Rg8 {[%clk 0:00:19]} 24. g3 {[%clk 0:01:01]}  Rg7 {[%clk 0:00:16]} 25. Re2 {[%clk 0:00:48]}  d4 {[%clk 0:00:06]} 26. Rde1 {[%clk 0:00:47]} 1-0


[Site "https://www.chess.com"]

[Event "Titled Tuesday Blitz November 15 Late 2022"]
[White "Tari, Aryan"]
[Black "Swiercz, Dariusz"]
[WhiteFideId "1510045"]
[BlackFideId "1126881"]
[WhiteElo "2612"]
[BlackElo "2627"]
[Result "1-0"]
[Round "10"]
[TimeControl "180+1"]
[Date "2022.11.15"]
[WhiteClock "0:00:24"]
[BlackClock "0:00:10"]

1. e4 {[%clk 0:03:00]}  e5 {[%clk 0:03:00]} 2. Nf3 {[%clk 0:03:01]}  Nc6 {[%clk 0:03:01]} 3. Bc4 {[%clk 0:02:57]}  Bc5 {[%clk 0:03:00]} 4. d3 {[%clk 0:02:55]}  Nf6 {[%clk 0:03:00]} 5. O-O {[%clk 0:02:55]}  d6 {[%clk 0:03:00]} 6. c3 {[%clk 0:02:54]}  a6 {[%clk 0:03:01]} 7. a4 {[%clk 0:02:53]}  h6 {[%clk 0:03:01]} 8. Re1 {[%clk 0:02:53]}  Ba7 {[%clk 0:02:59]} 9. Be3 {[%clk 0:02:44]}  Bxe3 {[%clk 0:02:56]} 10. Rxe3 {[%clk 0:02:44]}  O-O {[%clk 0:02:51]} 11. h3 {[%clk 0:02:45]}  Be6 {[%clk 0:02:41]} 12. Bxe6 {[%clk 0:02:40]}  fxe6 {[%clk 0:02:42]} 13. b4 {[%clk 0:02:40]}  Ne7 {[%clk 0:02:41]} 14. Nbd2 {[%clk 0:02:37]}  Ng6 {[%clk 0:02:41]} 15. d4 {[%clk 0:02:37]}  Nd7 {[%clk 0:02:40]} 16. a5 {[%clk 0:02:31]}  Rf7 {[%clk 0:02:32]} 17. Qb3 {[%clk 0:02:13]}  Qe7 {[%clk 0:02:26]} 18. b5 {[%clk 0:02:07]}  Rff8 {[%clk 0:01:31]} 19. bxa6 {[%clk 0:01:59]}  bxa6 {[%clk 0:01:32]} 20. Qc4 {[%clk 0:01:57]}  c5 {[%clk 0:01:22]} 21. d5 {[%clk 0:01:58]}  Nf4 {[%clk 0:01:04]} 22. dxe6 {[%clk 0:01:58]}  Nf6 {[%clk 0:01:04]} 23. Rb1 {[%clk 0:01:44]}  Kh7 {[%clk 0:00:38]} 24. Rb6 {[%clk 0:01:42]}  Nxe6 {[%clk 0:00:38]} 25. Rxa6 {[%clk 0:01:31]}  Nc7 {[%clk 0:00:38]} 26. Rxa8 {[%clk 0:01:27]}  Rxa8 {[%clk 0:00:39]} 27. Nb3 {[%clk 0:01:27]}  Nh5 {[%clk 0:00:26]} 28. g3 {[%clk 0:01:24]}  Nf6 {[%clk 0:00:26]} 29. Nfd2 {[%clk 0:01:23]}  Qd7 {[%clk 0:00:23]} 30. Kg2 {[%clk 0:01:24]}  Qc6 {[%clk 0:00:21]} 31. Re1 {[%clk 0:01:14]}  d5 {[%clk 0:00:18]} 32. exd5 {[%clk 0:01:13]}  Ncxd5 {[%clk 0:00:18]} 33. Kg1 {[%clk 0:01:09]}  Qd7 {[%clk 0:00:11]} 34. Qd3+ {[%clk 0:01:02]}  Kg8 {[%clk 0:00:09]} 35. c4 {[%clk 0:01:02]}  Nb4 {[%clk 0:00:09]} 36. Qxd7 {[%clk 0:01:02]}  Nxd7 {[%clk 0:00:10]} 37. Ne4 {[%clk 0:00:58]}  Nc2 {[%clk 0:00:10]} 38. Rd1 {[%clk 0:00:36]}  Nd4 {[%clk 0:00:10]} 39. Ned2 {[%clk 0:00:37]}  Kf7 {[%clk 0:00:10]} 40. Ra1 {[%clk 0:00:35]}  Ra6 {[%clk 0:00:09]} 41. Nxd4 {[%clk 0:00:32]}  cxd4 {[%clk 0:00:05]} 42. Ne4 {[%clk 0:00:32]}  Ke7 {[%clk 0:00:04]} 43. Kf1 {[%clk 0:00:33]}  Kd8 {[%clk 0:00:03]} 44. Ke2 {[%clk 0:00:33]}  Kc7 {[%clk 0:00:04]} 45. Kd3 {[%clk 0:00:33]}  Kc6 {[%clk 0:00:04]} 46. f4 {[%clk 0:00:32]}  exf4 {[%clk 0:00:03]} 47. gxf4 {[%clk 0:00:33]}  Nc5+ {[%clk 0:00:04]} 48. Nxc5 {[%clk 0:00:32]}  Kxc5 {[%clk 0:00:05]} 49. f5 {[%clk 0:00:31]}  h5 {[%clk 0:00:03]} 50. h4 {[%clk 0:00:31]}  g6 {[%clk 0:00:02]} 51. fxg6 {[%clk 0:00:29]}  Rxg6 {[%clk 0:00:03]} 52. a6 {[%clk 0:00:29]}  Rg3+ {[%clk 0:00:04]} 53. Ke4 {[%clk 0:00:29]}  Rg4+ {[%clk 0:00:04]} 54. Kf3 {[%clk 0:00:20]}  Rg8 {[%clk 0:00:04]} 55. a7 {[%clk 0:00:20]}  Ra8 {[%clk 0:00:04]} 56. Ra4 {[%clk 0:00:21]}  Kb6 {[%clk 0:00:03]} 57. Ke4 {[%clk 0:00:21]}  Rxa7 {[%clk 0:00:03]} 58. Rxa7 {[%clk 0:00:21]}  Kxa7 {[%clk 0:00:04]} 59. Kxd4 {[%clk 0:00:21]}  Kb6 {[%clk 0:00:05]} 60. Kd5 {[%clk 0:00:19]}  Kb7 {[%clk 0:00:05]} 61. Ke5 {[%clk 0:00:20]}  Kc6 {[%clk 0:00:06]} 62. Kf5 {[%clk 0:00:20]}  Kc5 {[%clk 0:00:07]} 63. Kg5 {[%clk 0:00:21]}  Kxc4 {[%clk 0:00:07]} 64. Kxh5 {[%clk 0:00:22]}  Kd5 {[%clk 0:00:08]} 65. Kg6 {[%clk 0:00:23]}  Ke6 {[%clk 0:00:09]} 66. h5 {[%clk 0:00:23]}  Ke7 {[%clk 0:00:10]} 67. Kg7 {[%clk 0:00:24]} 1-0


[Site "https://www.chess.com"]

[Event "Titled Tuesday Blitz November 15 Late 2022"]
[White "Ter-Sahakyan, Samvel"]
[Black "Chigaev, Maksim"]
[WhiteFideId "13302531"]
[BlackFideId "4108116"]
[WhiteElo "2584"]
[BlackElo "2541"]
[Result "0-1"]
[Round "10"]
[TimeControl "180+1"]
[Date "2022.11.15"]
[WhiteClock "0:00:01"]
[BlackClock "0:00:05"]

1. d4 {[%clk 0:02:59]}  Nf6 {[%clk 0:02:59]} 2. Nf3 {[%clk 0:03:00]}  g6 {[%clk 0:03:00]} 3. Nbd2 {[%clk 0:03:00]}  Bg7 {[%clk 0:03:00]} 4. e4 {[%clk 0:02:59]}  O-O {[%clk 0:03:00]} 5. Bd3 {[%clk 0:02:57]}  c5 {[%clk 0:03:00]} 6. c3 {[%clk 0:02:55]}  Nh5 {[%clk 0:02:53]} 7. O-O {[%clk 0:02:53]}  Nf4 {[%clk 0:02:50]} 8. Bc2 {[%clk 0:02:52]}  cxd4 {[%clk 0:02:50]} 9. cxd4 {[%clk 0:02:52]}  d5 {[%clk 0:02:50]} 10. e5 {[%clk 0:02:49]}  Nc6 {[%clk 0:02:49]} 11. Nb3 {[%clk 0:02:44]}  Ne6 {[%clk 0:02:44]} 12. Be3 {[%clk 0:02:44]}  a5 {[%clk 0:02:27]} 13. a3 {[%clk 0:02:27]}  a4 {[%clk 0:02:22]} 14. Nc1 {[%clk 0:02:23]}  b5 {[%clk 0:02:21]} 15. Ne2 {[%clk 0:02:19]}  Na5 {[%clk 0:02:21]} 16. Nd2 {[%clk 0:01:59]}  f6 {[%clk 0:02:17]} 17. exf6 {[%clk 0:01:41]}  exf6 {[%clk 0:02:18]} 18. b3 {[%clk 0:01:27]}  f5 {[%clk 0:02:13]} 19. Nf3 {[%clk 0:01:18]}  axb3 {[%clk 0:02:07]} 20. Bxb3 {[%clk 0:01:18]}  Nc4 {[%clk 0:02:08]} 21. Bc1 {[%clk 0:01:14]}  g5 {[%clk 0:02:00]} 22. Ra2 {[%clk 0:01:03]}  Ra6 {[%clk 0:01:44]} 23. a4 {[%clk 0:01:01]}  bxa4 {[%clk 0:01:33]} 24. Rxa4 {[%clk 0:00:50]}  Rxa4 {[%clk 0:01:21]} 25. Bxa4 {[%clk 0:00:51]}  g4 {[%clk 0:01:20]} 26. Ne5 {[%clk 0:00:50]}  Nxd4 {[%clk 0:00:54]} 27. Nc6 {[%clk 0:00:21]}  Nxc6 {[%clk 0:00:33]} 28. Bxc6 {[%clk 0:00:22]}  d4 {[%clk 0:00:29]} 29. Nf4 {[%clk 0:00:19]}  Ne5 {[%clk 0:00:28]} 30. Bd5+ {[%clk 0:00:19]}  Kh8 {[%clk 0:00:29]} 31. Bb2 {[%clk 0:00:18]}  Qb6 {[%clk 0:00:15]} 32. Ba1 {[%clk 0:00:10]}  Ng6 {[%clk 0:00:13]} 33. Nh5 {[%clk 0:00:10]}  Be5 {[%clk 0:00:09]} 34. Re1 {[%clk 0:00:10]}  Rd8 {[%clk 0:00:10]} 35. Bf7 {[%clk 0:00:07]}  Qc5 {[%clk 0:00:08]} 36. h3 {[%clk 0:00:06]}  gxh3 {[%clk 0:00:07]} 37. Bxg6 {[%clk 0:00:06]}  hxg6 {[%clk 0:00:07]} 38. Qd2 {[%clk 0:00:05]}  Kh7 {[%clk 0:00:07]} 39. f4 {[%clk 0:00:04]}  Bh8 {[%clk 0:00:06]} 40. Ng3 {[%clk 0:00:04]}  Bb7 {[%clk 0:00:04]} 41. Rb1 {[%clk 0:00:02]}  Qd5 {[%clk 0:00:04]} 42. gxh3 {[%clk 0:00:01]}  Rd7 {[%clk 0:00:03]} 43. Kh2 {[%clk 0:00:02]}  Bg7 {[%clk 0:00:03]} 44. Re1 {[%clk 0:00:02]}  Rc7 {[%clk 0:00:04]} 45. h4 {[%clk 0:00:01]}  d3 {[%clk 0:00:04]} 46. Bxg7 {[%clk 0:00:01]}  Rc2 {[%clk 0:00:05]} 0-1


[Site "https://www.chess.com"]

[Event "Titled Tuesday Blitz November 15 Late 2022"]
[White "Tsydypov, Zhamsaran"]
[Black "Ghazarian, Kirk"]
[WhiteFideId "4108566"]
[BlackFideId "30908604"]
[WhiteElo "2591"]
[BlackElo "2346"]
[Result "1-0"]
[Round "10"]
[TimeControl "180+1"]
[Date "2022.11.15"]
[WhiteClock "0:01:49"]
[BlackClock "0:01:09"]

1. e4 {[%clk 0:03:00]}  c5 {[%clk 0:02:59]} 2. Nf3 {[%clk 0:02:59]}  d6 {[%clk 0:03:00]} 3. d4 {[%clk 0:02:59]}  cxd4 {[%clk 0:03:00]} 4. Nxd4 {[%clk 0:03:00]}  Nf6 {[%clk 0:03:00]} 5. Nc3 {[%clk 0:03:01]}  Nc6 {[%clk 0:03:01]} 6. Bg5 {[%clk 0:03:00]}  e6 {[%clk 0:03:01]} 7. Qd2 {[%clk 0:03:00]}  a6 {[%clk 0:03:02]} 8. O-O-O {[%clk 0:03:00]}  Bd7 {[%clk 0:03:01]} 9. f4 {[%clk 0:03:00]}  b5 {[%clk 0:03:01]} 10. Bxf6 {[%clk 0:02:58]}  gxf6 {[%clk 0:03:02]} 11. Nf3 {[%clk 0:02:57]}  Qb6 {[%clk 0:02:53]} 12. Kb1 {[%clk 0:02:57]}  h5 {[%clk 0:02:53]} 13. g3 {[%clk 0:02:56]}  O-O-O {[%clk 0:02:43]} 14. Bh3 {[%clk 0:02:56]}  Kb8 {[%clk 0:02:42]} 15. Ne2 {[%clk 0:02:55]}  Bc8 {[%clk 0:02:39]} 16. Ned4 {[%clk 0:02:54]}  Nxd4 {[%clk 0:02:38]} 17. Nxd4 {[%clk 0:02:54]}  Bb7 {[%clk 0:02:37]} 18. Rhe1 {[%clk 0:02:53]}  Be7 {[%clk 0:02:29]} 19. Bg2 {[%clk 0:02:49]}  h4 {[%clk 0:02:26]} 20. Re2 {[%clk 0:02:41]}  hxg3 {[%clk 0:02:25]} 21. hxg3 {[%clk 0:02:42]}  Rdg8 {[%clk 0:02:20]} 22. Qe3 {[%clk 0:02:42]}  Qc5 {[%clk 0:02:16]} 23. Rd3 {[%clk 0:02:39]}  Rg7 {[%clk 0:02:05]} 24. Rc3 {[%clk 0:02:38]}  Qa7 {[%clk 0:02:06]} 25. a4 {[%clk 0:02:36]}  Rhg8 {[%clk 0:02:02]} 26. Qf2 {[%clk 0:02:32]}  b4 {[%clk 0:01:59]} 27. Rc7 {[%clk 0:02:23]}  Kxc7 {[%clk 0:01:44]} 28. Nb5+ {[%clk 0:02:21]}  axb5 {[%clk 0:01:45]} 29. Qxa7 {[%clk 0:02:22]}  Rxg3 {[%clk 0:01:45]} 30. a5 {[%clk 0:02:21]}  Ra8 {[%clk 0:01:37]} 31. Qb6+ {[%clk 0:02:20]}  Kc8 {[%clk 0:01:34]} 32. Qxb5 {[%clk 0:02:06]}  Bd8 {[%clk 0:01:34]} 33. Qxb4 {[%clk 0:01:56]}  Rxa5 {[%clk 0:01:29]} 34. Qxd6 {[%clk 0:01:53]}  Ra6 {[%clk 0:01:23]} 35. Qf8 {[%clk 0:01:51]}  Rc6 {[%clk 0:01:09]} 36. Rd2 {[%clk 0:01:49]} 1-0


[Site "https://www.chess.com"]

[Event "Titled Tuesday Blitz November 15 Late 2022"]
[White "Urazayev, Arystanbek"]
[Black "Mirzoev, Azer"]
[WhiteFideId "13709810"]
[BlackFideId "13400304"]
[WhiteElo "2441"]
[BlackElo "2525"]
[Result "1-0"]
[Round "10"]
[TimeControl "180+1"]
[Date "2022.11.15"]
[WhiteClock "0:02:15"]
[BlackClock "0:01:06"]

1. e4 {[%clk 0:03:00]}  c5 {[%clk 0:02:59]} 2. Nf3 {[%clk 0:03:01]}  e6 {[%clk 0:02:59]} 3. c3 {[%clk 0:02:53]}  d5 {[%clk 0:02:58]} 4. exd5 {[%clk 0:02:54]}  Qxd5 {[%clk 0:02:58]} 5. d4 {[%clk 0:02:55]}  Nf6 {[%clk 0:02:58]} 6. Bd3 {[%clk 0:02:55]}  cxd4 {[%clk 0:02:58]} 7. cxd4 {[%clk 0:02:55]}  Nc6 {[%clk 0:02:58]} 8. Nc3 {[%clk 0:02:56]}  Qd6 {[%clk 0:02:58]} 9. O-O {[%clk 0:02:56]}  Be7 {[%clk 0:02:59]} 10. Re1 {[%clk 0:02:57]}  O-O {[%clk 0:02:58]} 11. a3 {[%clk 0:02:56]}  b6 {[%clk 0:02:58]} 12. Bc2 {[%clk 0:02:56]}  Bb7 {[%clk 0:02:58]} 13. Qd3 {[%clk 0:02:56]}  Rad8 {[%clk 0:02:57]} 14. Bg5 {[%clk 0:02:55]}  g6 {[%clk 0:02:57]} 15. Rad1 {[%clk 0:02:52]}  Nd5 {[%clk 0:02:54]} 16. Bh6 {[%clk 0:02:48]}  Nxc3 {[%clk 0:02:48]} 17. Qxc3 {[%clk 0:02:48]}  Bf6 {[%clk 0:02:38]} 18. Bxf8 {[%clk 0:02:47]}  Kxf8 {[%clk 0:02:38]} 19. Be4 {[%clk 0:02:47]}  Kg7 {[%clk 0:02:24]} 20. Qe3 {[%clk 0:02:47]}  Ba6 {[%clk 0:02:11]} 21. d5 {[%clk 0:02:44]}  Ne7 {[%clk 0:02:06]} 22. h4 {[%clk 0:02:23]}  exd5 {[%clk 0:02:01]} 23. h5 {[%clk 0:02:19]}  Bxb2 {[%clk 0:01:54]} 24. h6+ {[%clk 0:02:19]}  Kg8 {[%clk 0:01:53]} 25. Bxd5 {[%clk 0:02:19]}  Nf5 {[%clk 0:01:06]} 26. Bxf7+ {[%clk 0:02:15]}  Kxf7 {[%clk 0:01:06]} 27. Qb3+ {[%clk 0:02:15]} 1-0


[Site "https://www.chess.com"]

[Event "Titled Tuesday Blitz November 15 Late 2022"]
[White "Yoo, Christopher Woojin"]
[Black "Tang, Andrew"]
[WhiteFideId "30909694"]
[BlackFideId "2059630"]
[WhiteElo "2463"]
[BlackElo "2581"]
[Result "1-0"]
[Round "10"]
[TimeControl "180+1"]
[Date "2022.11.15"]
[WhiteClock "0:00:13"]
[BlackClock "0:00:02"]

1. b3 {[%clk 0:03:00]}  d5 {[%clk 0:02:58]} 2. Bb2 {[%clk 0:03:00]}  c5 {[%clk 0:02:59]} 3. e3 {[%clk 0:03:00]}  Nc6 {[%clk 0:02:56]} 4. Bb5 {[%clk 0:03:00]}  Nf6 {[%clk 0:02:54]} 5. Nf3 {[%clk 0:03:00]}  Qb6 {[%clk 0:02:54]} 6. c4 {[%clk 0:02:58]}  dxc4 {[%clk 0:02:54]} 7. Bxc4 {[%clk 0:02:56]}  Bg4 {[%clk 0:02:54]} 8. h3 {[%clk 0:02:56]}  Bh5 {[%clk 0:02:54]} 9. Nc3 {[%clk 0:02:55]}  e6 {[%clk 0:02:55]} 10. g4 {[%clk 0:02:53]}  Bg6 {[%clk 0:02:55]} 11. g5 {[%clk 0:02:54]}  Nd7 {[%clk 0:02:42]} 12. Nh4 {[%clk 0:02:52]}  Nde5 {[%clk 0:02:30]} 13. Nxg6 {[%clk 0:02:49]}  hxg6 {[%clk 0:02:27]} 14. Be2 {[%clk 0:02:49]}  Qd8 {[%clk 0:02:15]} 15. f4 {[%clk 0:02:46]}  Nd3+ {[%clk 0:02:15]} 16. Bxd3 {[%clk 0:02:45]}  Qxd3 {[%clk 0:02:16]} 17. Qe2 {[%clk 0:02:12]}  Qf5 {[%clk 0:02:15]} 18. O-O-O {[%clk 0:01:46]}  O-O-O {[%clk 0:02:03]} 19. Rdf1 {[%clk 0:01:44]}  c4 {[%clk 0:01:13]} 20. Qxc4 {[%clk 0:01:37]}  Rxh3 {[%clk 0:00:59]} 21. Rxh3 {[%clk 0:01:16]}  Qxh3 {[%clk 0:00:58]} 22. Nb5 {[%clk 0:01:09]}  Kd7 {[%clk 0:00:53]} 23. Kb1 {[%clk 0:01:07]}  Qg2 {[%clk 0:00:46]} 24. Rc1 {[%clk 0:00:36]}  Qxd2 {[%clk 0:00:28]} 25. Rc3 {[%clk 0:00:35]}  Nb4 {[%clk 0:00:12]} 26. a3 {[%clk 0:00:30]}  Nd5 {[%clk 0:00:12]} 27. Rd3 {[%clk 0:00:28]}  Qe1+ {[%clk 0:00:08]} 28. Ka2 {[%clk 0:00:29]}  Be7 {[%clk 0:00:04]} 29. e4 {[%clk 0:00:18]}  Rc8 {[%clk 0:00:03]} 30. Qa4 {[%clk 0:00:18]}  Kd8 {[%clk 0:00:01]} 31. exd5 {[%clk 0:00:18]}  Rc2 {[%clk 0:00:02]} 32. dxe6+ {[%clk 0:00:18]}  Kc8 {[%clk 0:00:02]} 33. Nd4 {[%clk 0:00:13]}  Rxb2+ {[%clk 0:00:01]} 34. Kxb2 {[%clk 0:00:13]}  Qf2+ {[%clk 0:00:02]} 35. Nc2 {[%clk 0:00:13]} 1-0


[Site "https://www.chess.com"]

[Event "Titled Tuesday Blitz November 15 Late 2022"]
[White "Zhigalko, Sergei"]
[Black "Sabuk, Piotr"]
[WhiteFideId "13502956"]
[BlackFideId "1137565"]
[WhiteElo "2662"]
[BlackElo "2326"]
[Result "1-0"]
[Round "10"]
[TimeControl "180+1"]
[Date "2022.11.15"]
[WhiteClock "0:00:05"]
[BlackClock "0:00:06"]

1. e4 {[%clk 0:03:00]}  e5 {[%clk 0:02:55]} 2. Nf3 {[%clk 0:03:00]}  Nc6 {[%clk 0:02:55]} 3. Bc4 {[%clk 0:02:58]}  Nf6 {[%clk 0:02:54]} 4. d3 {[%clk 0:02:59]}  Be7 {[%clk 0:02:50]} 5. O-O {[%clk 0:02:58]}  O-O {[%clk 0:02:50]} 6. Nbd2 {[%clk 0:02:58]}  d6 {[%clk 0:02:42]} 7. c3 {[%clk 0:02:53]}  a6 {[%clk 0:02:35]} 8. Bb3 {[%clk 0:02:53]}  Be6 {[%clk 0:02:35]} 9. Re1 {[%clk 0:02:41]}  Re8 {[%clk 0:02:34]} 10. Bxe6 {[%clk 0:02:40]}  fxe6 {[%clk 0:02:34]} 11. Nf1 {[%clk 0:02:38]}  Qd7 {[%clk 0:02:31]} 12. Ng3 {[%clk 0:02:38]}  h6 {[%clk 0:02:27]} 13. d4 {[%clk 0:02:38]}  exd4 {[%clk 0:02:25]} 14. cxd4 {[%clk 0:02:38]}  d5 {[%clk 0:02:25]} 15. e5 {[%clk 0:02:39]}  Nh7 {[%clk 0:02:23]} 16. Be3 {[%clk 0:02:26]}  Rf8 {[%clk 0:02:19]} 17. Rc1 {[%clk 0:02:26]}  Rf7 {[%clk 0:02:12]} 18. Qc2 {[%clk 0:02:07]}  Raf8 {[%clk 0:02:11]} 19. Qg6 {[%clk 0:02:05]}  Bb4 {[%clk 0:02:03]} 20. Red1 {[%clk 0:01:37]}  Ne7 {[%clk 0:02:01]} 21. Qc2 {[%clk 0:01:35]}  Nc6 {[%clk 0:01:51]} 22. a3 {[%clk 0:01:14]}  Ba5 {[%clk 0:01:42]} 23. Ne1 {[%clk 0:01:00]}  Bb6 {[%clk 0:01:35]} 24. Qg6 {[%clk 0:00:54]}  Ne7 {[%clk 0:01:33]} 25. Qg4 {[%clk 0:00:54]}  Nf5 {[%clk 0:01:32]} 26. Nd3 {[%clk 0:00:53]}  Nxe3 {[%clk 0:01:24]} 27. fxe3 {[%clk 0:00:53]}  Kh8 {[%clk 0:01:14]} 28. Nf4 {[%clk 0:00:49]}  Rxf4 {[%clk 0:01:01]} 29. exf4 {[%clk 0:00:48]}  Qf7 {[%clk 0:01:00]} 30. Kh1 {[%clk 0:00:24]}  g6 {[%clk 0:00:58]} 31. Ne2 {[%clk 0:00:17]}  h5 {[%clk 0:00:57]} 32. Qg3 {[%clk 0:00:17]}  Qe7 {[%clk 0:00:49]} 33. Rf1 {[%clk 0:00:15]}  Rg8 {[%clk 0:00:45]} 34. Rcd1 {[%clk 0:00:14]}  Nf8 {[%clk 0:00:44]} 35. Ng1 {[%clk 0:00:14]}  Nd7 {[%clk 0:00:41]} 36. Nf3 {[%clk 0:00:13]}  Nb8 {[%clk 0:00:41]} 37. Ng5 {[%clk 0:00:11]}  Nc6 {[%clk 0:00:41]} 38. Qc3 {[%clk 0:00:09]}  Rf8 {[%clk 0:00:37]} 39. g3 {[%clk 0:00:08]}  Rf5 {[%clk 0:00:37]} 40. Kg2 {[%clk 0:00:07]}  Nd8 {[%clk 0:00:31]} 41. h3 {[%clk 0:00:07]}  Nf7 {[%clk 0:00:30]} 42. Nf3 {[%clk 0:00:06]}  Kg7 {[%clk 0:00:15]} 43. Nh4 {[%clk 0:00:06]}  Nh6 {[%clk 0:00:16]} 44. Qd3 {[%clk 0:00:05]}  c5 {[%clk 0:00:15]} 45. dxc5 {[%clk 0:00:05]}  Bxc5 {[%clk 0:00:15]} 46. Rc1 {[%clk 0:00:06]}  a5 {[%clk 0:00:14]} 47. Rc2 {[%clk 0:00:05]}  b6 {[%clk 0:00:14]} 48. Rfc1 {[%clk 0:00:06]}  g5 {[%clk 0:00:15]} 49. fxg5 {[%clk 0:00:03]}  Qxg5 {[%clk 0:00:14]} 50. b4 {[%clk 0:00:03]}  axb4 {[%clk 0:00:12]} 51. axb4 {[%clk 0:00:04]}  Rxe5 {[%clk 0:00:11]} 52. bxc5 {[%clk 0:00:03]}  Re3 {[%clk 0:00:11]} 53. Nf3 {[%clk 0:00:03]}  Rxd3 {[%clk 0:00:05]} 54. Nxg5 {[%clk 0:00:03]}  bxc5 {[%clk 0:00:06]} 55. Nxe6+ {[%clk 0:00:04]}  Kg6 {[%clk 0:00:06]} 56. Nf4+ {[%clk 0:00:05]} 1-0


[Site "https://www.chess.com"]

[Event "Titled Tuesday Blitz November 15 Late 2022"]
[White "Al-Tarboush, Ward"]
[Black "Avila Rodriguez, Joshua Ad"]
[WhiteFideId "7601450"]
[BlackFideId "5126444"]
[WhiteElo "2273"]
[BlackElo "2125"]
[Result "1-0"]
[Round "11"]
[TimeControl "180+1"]
[Date "2022.11.16"]
[WhiteClock "0:01:09"]
[BlackClock "0:00:23"]

1. d4 {[%clk 0:02:42]}  Nf6 {[%clk 0:02:59]} 2. Nc3 {[%clk 0:02:42]}  e6 {[%clk 0:03:00]} 3. e4 {[%clk 0:02:42]}  d5 {[%clk 0:02:59]} 4. e5 {[%clk 0:02:39]}  Nfd7 {[%clk 0:02:58]} 5. f4 {[%clk 0:02:40]}  c5 {[%clk 0:02:59]} 6. Nf3 {[%clk 0:02:40]}  Nc6 {[%clk 0:02:59]} 7. Be3 {[%clk 0:02:39]}  Be7 {[%clk 0:02:58]} 8. Be2 {[%clk 0:02:39]}  O-O {[%clk 0:02:51]} 9. O-O {[%clk 0:02:38]}  b6 {[%clk 0:02:29]} 10. Qd2 {[%clk 0:02:33]}  Bb7 {[%clk 0:02:28]} 11. Nd1 {[%clk 0:02:26]}  f6 {[%clk 0:02:22]} 12. f5 {[%clk 0:02:17]}  cxd4 {[%clk 0:02:16]} 13. Nxd4 {[%clk 0:01:59]}  Nxd4 {[%clk 0:02:16]} 14. Qxd4 {[%clk 0:01:52]}  fxe5 {[%clk 0:02:13]} 15. Qg4 {[%clk 0:01:52]}  exf5 {[%clk 0:02:05]} 16. Rxf5 {[%clk 0:01:53]}  Rxf5 {[%clk 0:02:04]} 17. Qxf5 {[%clk 0:01:54]}  Bf6 {[%clk 0:01:40]} 18. Bg4 {[%clk 0:01:51]}  Nf8 {[%clk 0:01:39]} 19. Nf2 {[%clk 0:01:42]}  g6 {[%clk 0:01:24]} 20. Qd3 {[%clk 0:01:41]}  e4 {[%clk 0:01:22]} 21. Qd1 {[%clk 0:01:34]}  d4 {[%clk 0:01:19]} 22. Bf4 {[%clk 0:01:34]}  Qe7 {[%clk 0:01:02]} 23. Qe1 {[%clk 0:01:28]}  Ne6 {[%clk 0:00:51]} 24. Bg3 {[%clk 0:01:26]}  Ng5 {[%clk 0:00:39]} 25. h4 {[%clk 0:01:26]}  Nf7 {[%clk 0:00:40]} 26. Rd1 {[%clk 0:01:23]}  Rd8 {[%clk 0:00:39]} 27. Nh3 {[%clk 0:01:19]}  Bxh4 {[%clk 0:00:37]} 28. Bxh4 {[%clk 0:01:19]}  g5 {[%clk 0:00:35]} 29. Bg3 {[%clk 0:01:18]}  Ne5 {[%clk 0:00:30]} 30. Bxe5 {[%clk 0:01:14]}  Qxe5 {[%clk 0:00:30]} 31. Qf1 {[%clk 0:01:10]}  Rf8 {[%clk 0:00:29]} 32. Qc4+ {[%clk 0:01:10]}  Bd5 {[%clk 0:00:27]} 33. Qxd4 {[%clk 0:01:10]}  Qg3 {[%clk 0:00:23]} 34. Qxd5+ {[%clk 0:01:09]}  Kh8 {[%clk 0:00:24]} 35. Qd4+ {[%clk 0:01:09]}  Kg8 {[%clk 0:00:23]} 36. Be6+ {[%clk 0:01:09]} 1-0


[Site "https://www.chess.com"]

[Event "Titled Tuesday Blitz November 15 Late 2022"]
[White "Andreikin, Dmitry"]
[Black "Xiong, Jeffery"]
[WhiteFideId "4158814"]
[BlackFideId "2047640"]
[WhiteElo "2736"]
[BlackElo "2725"]
[Result "1-0"]
[Round "11"]
[TimeControl "180+1"]
[Date "2022.11.15"]
[WhiteClock "0:00:39"]
[BlackClock "0:01:24"]

1. Nf3 {[%clk 0:03:00]}  Nf6 {[%clk 0:02:59]} 2. c4 {[%clk 0:03:00]}  c5 {[%clk 0:02:57]} 3. Nc3 {[%clk 0:03:00]}  d5 {[%clk 0:02:57]} 4. cxd5 {[%clk 0:03:00]}  Nxd5 {[%clk 0:02:58]} 5. g3 {[%clk 0:03:01]}  Nc6 {[%clk 0:02:57]} 6. Bg2 {[%clk 0:03:01]}  Nc7 {[%clk 0:02:58]} 7. a3 {[%clk 0:03:01]}  g6 {[%clk 0:02:55]} 8. d3 {[%clk 0:02:51]}  Bg7 {[%clk 0:02:55]} 9. Be3 {[%clk 0:02:51]}  Ne6 {[%clk 0:02:49]} 10. h4 {[%clk 0:02:51]}  h5 {[%clk 0:02:48]} 11. Qd2 {[%clk 0:02:49]}  Bd7 {[%clk 0:02:45]} 12. O-O {[%clk 0:02:43]}  Rc8 {[%clk 0:02:46]} 13. Rab1 {[%clk 0:02:40]}  Ncd4 {[%clk 0:02:46]} 14. Ne4 {[%clk 0:02:30]}  O-O {[%clk 0:02:33]} 15. b4 {[%clk 0:02:25]}  Nxf3+ {[%clk 0:02:31]} 16. Bxf3 {[%clk 0:02:24]}  c4 {[%clk 0:02:32]} 17. dxc4 {[%clk 0:02:16]}  Rxc4 {[%clk 0:02:33]} 18. Nc5 {[%clk 0:02:12]}  Nxc5 {[%clk 0:02:30]} 19. Rfd1 {[%clk 0:01:46]}  Qe8 {[%clk 0:01:57]} 20. bxc5 {[%clk 0:01:31]}  Bc6 {[%clk 0:01:51]} 21. Bxc6 {[%clk 0:01:21]}  bxc6 {[%clk 0:01:52]} 22. Rb7 {[%clk 0:01:14]}  Ra4 {[%clk 0:01:51]} 23. Qc2 {[%clk 0:01:07]}  Rxa3 {[%clk 0:01:49]} 24. Rdd7 {[%clk 0:01:08]}  Rxe3 {[%clk 0:01:45]} 25. fxe3 {[%clk 0:01:07]}  a5 {[%clk 0:01:39]} 26. Rxe7 {[%clk 0:01:02]}  Qd8 {[%clk 0:01:35]} 27. Rbd7 {[%clk 0:00:53]}  Qc8 {[%clk 0:01:24]} 28. Qc4 {[%clk 0:00:43]}  Qb8 {[%clk 0:01:24]} 29. Kg2 {[%clk 0:00:39]} 1-0


[Site "https://www.chess.com"]